fUST/lending_fUST_20240721
["ID","MTS","AMOUNT","RATE_DAILY","PERIOD"]
[332846439,1721574649527,-500.0,0.00013972,2]
[332846440,1721574649536,-648.14,0.00013972,2]
[332846441,1721574649548,-2313.44,0.00013972,2]
[332846442,1721574649558,-1229.93,0.00013972,2]
[332846443,1721574649568,-6955.44,0.00013972,2]
[332846444,1721574649579,-505.71283809,0.00013972,2]
[332846445,1721574649589,-500.0,0.00013972,2]
[332846446,1721574649601,-5865.42,0.00013972,2]
[332846447,1721574649613,-500.0,0.00013972,2]
[332846448,1721574649624,-500.0,0.00013972,2]
[332846449,1721574649634,-877.65,0.00013972,2]
[332846450,1721574649644,-500.0,0.00013972,2]
[332846451,1721574649655,-500.0,0.00013972,2]
[332846452,1721574649666,-500.0,0.00013972,2]
[332846453,1721574649678,-500.0,0.00013972,2]
[332846454,1721574649689,-453.2,0.00013972,2]
[332846455,1721574649700,-557.52,0.00013972,2]
[332846456,1721574649710,-500.0,0.00013972,2]
[332846457,1721574649721,-166.49,0.00013972,2]
[332846458,1721574649731,-476.27,0.00013972,2]
[332846459,1721574649742,-337.86,0.00013972,2]
[332846460,1721574649752,-831.66,0.00013972,2]
[332846461,1721574649763,-384.66,0.00013972,2]
[332846462,1721574649774,-632.04,0.00013972,2]
[332846463,1721574649784,-531.38,0.00013972,2]
[332846464,1721574649795,-214.38,0.00013972,2]
[332846465,1721574649805,-500.0,0.00013972,2]
[332846466,1721574649815,-268.59,0.00013972,2]
[332846467,1721574649825,-374.1,0.00013972,2]
[332846468,1721574649836,-168.28,0.00013972,2]
[332846469,1721574649845,-500.0,0.00013972,2]
[332846470,1721574649855,-500.0,0.00013972,2]
[332846471,1721574649865,-500.0,0.00013972,2]
[332846472,1721574649877,-500.0,0.00013972,2]
[332846473,1721574649888,-500.0,0.00013972,2]
[332846474,1721574649899,-500.0,0.00013972,2]
[332846475,1721574649910,-500.0,0.00013972,2]
[332846476,1721574649920,-435.93,0.00013972,2]
[332846477,1721574649931,-582.74,0.00013972,2]
[332846478,1721574649945,-500.0,0.00013972,2]
[332846479,1721574649956,-500.0,0.00013972,2]
[332846480,1721574649966,-500.0,0.00013972,2]
[332846481,1721574649976,-276.21,0.00013972,2]
[332846482,1721574649985,-500.0,0.00013972,2]
[332846483,1721574649996,-511.22,0.00013972,2]
[332846484,1721574650008,-500.0,0.00013972,2]
[332846485,1721574650019,-500.0,0.00013972,2]
[332846486,1721574650030,-500.0,0.00013972,2]
[332846487,1721574650041,-500.0,0.00013972,2]
[332846488,1721574650051,-500.0,0.00013972,2]
[332846489,1721574650060,-500.0,0.00013972,2]
[332846490,1721574650070,-350.61,0.00013972,2]
[332846491,1721574650081,-500.0,0.00013972,2]
[332846492,1721574650090,-500.0,0.00013972,2]
[332846493,1721574650100,-174.71,0.00013972,2]
[332846494,1721574650110,-500.0,0.00013972,2]
[332846495,1721574650119,-500.0,0.00013972,2]
[332846496,1721574650129,-327.41,0.00013972,2]
[332846497,1721574650138,-500.0,0.00013972,2]
[332846498,1721574650148,-500.0,0.00013972,2]
[332846499,1721574650157,-500.0,0.00013972,2]
[332846500,1721574650166,-500.0,0.00013972,2]
[332846501,1721574650175,-263.56,0.00013972,2]
[332846502,1721574650185,-500.0,0.00013972,2]
[332846503,1721574650199,-578.09,0.00013972,2]
[332846504,1721574650208,-430.18,0.00013972,2]
[332846505,1721574650217,-500.0,0.00013972,2]
[332846506,1721574650227,-500.0,0.00013972,2]
[332846507,1721574650238,-500.0,0.00013972,2]
[332846508,1721574650248,-359.08,0.00013972,2]
[332846509,1721574650258,-222.53,0.00013972,2]
[332846510,1721574650270,-500.0,0.00013972,2]
[332846511,1721574650281,-500.0,0.00013972,2]
[332846512,1721574650292,-500.0,0.00013972,2]
[332846513,1721574650302,-389.65926264,0.00013972,2]
[332846514,1721574650311,-514.46089773,0.00013972,2]
[332846515,1721574650322,-500.0,0.00013972,2]
[332846516,1721574650332,-500.0,0.00013972,2]
[332846517,1721574650342,-210.76,0.00013972,2]
[332846518,1721574650353,-500.0,0.00013972,2]
[332846519,1721574650365,-500.0,0.00013972,2]
[332846520,1721574650376,-244.8,0.00013972,2]
[332846521,1721574650386,-500.0,0.00013972,2]
[332846522,1721574650396,-500.0,0.00013972,2]
[332846523,1721574650407,-500.0,0.00013972,2]
[332846524,1721574650417,-539.22,0.00013972,2]
[332846525,1721574650429,-430.77,0.00013972,2]
[332846526,1721574650440,-500.0,0.00013972,2]
[332846527,1721574650450,-500.0,0.00013972,2]
[332846528,1721574650460,-500.0,0.00013972,2]
[332846529,1721574650469,-500.0,0.00013972,2]
[332846530,1721574650480,-216.45,0.00013972,2]
[332846531,1721574650492,-500.0,0.00013972,2]
[332846532,1721574650501,-267.77,0.00013972,2]
[332846533,1721574650513,-287.8740586,0.00013972,2]
[332846534,1721574650523,-331.66,0.00013972,2]
[332846535,1721574650536,-577.15,0.00013972,2]
[332846536,1721574650546,-430.2,0.00013972,2]
[332846537,1721574650556,-500.0,0.00013972,2]
[332846538,1721574650567,-500.0,0.00013972,2]
[332846539,1721574650580,-500.0,0.00013972,2]
[332846540,1721574650590,-166.18,0.00013972,2]
[332846541,1721574650600,-500.0,0.00013972,2]
[332846542,1721574650612,-565.6,0.00013972,2]
[332846543,1721574650622,-500.0,0.00013972,2]
[332846544,1721574650632,-648.14,0.00013972,2]
[332846545,1721574650642,-505.89,0.00013972,2]
[332846546,1721574650653,-271.46,0.00013972,2]
[332846547,1721574650664,-500.0,0.00013972,2]
[332846548,1721574650674,-200.9,0.00013972,2]
[332846549,1721574650685,-500.0,0.00013972,2]
[332846550,1721574650698,-316.07,0.00013972,2]
[332846551,1721574650708,-500.0,0.00013972,2]
[332846552,1721574650717,-500.0,0.00013972,2]
[332846553,1721574650727,-500.0,0.00013972,2]
[332846554,1721574650737,-223.1,0.00013972,2]
[332846555,1721574650746,-500.0,0.00013972,2]
[332846556,1721574650756,-423.66,0.00013972,2]
[332846557,1721574650766,-500.0,0.00013972,2]
[332846558,1721574650776,-500.0,0.00013972,2]
[332846559,1721574650787,-152.01,0.00013972,2]
[332846560,1721574650798,-417.62,0.00013972,2]
[332846561,1721574650809,-318.39,0.00013972,2]
[332846562,1721574650819,-500.0,0.00013972,2]
[332846563,1721574650830,-187.94,0.00013972,2]
[332846564,1721574650839,-500.0,0.00013972,2]
[332846565,1721574650849,-500.0,0.00013972,2]
[332846566,1721574650859,-184.13,0.00013972,2]
[332846567,1721574650870,-554.8,0.00013972,2]
[332846568,1721574650881,-234.72,0.00013972,2]
[332846569,1721574650892,-449.60475836,0.00013972,2]
[332846570,1721574650903,-500.0,0.00013972,2]
[332846571,1721574650914,-500.0,0.00013972,2]
[332846572,1721574650924,-500.0,0.00013972,2]
[332846573,1721574650934,-500.0,0.00013972,2]
[332846574,1721574650944,-511.77010146,0.00013972,2]
[332846575,1721574650956,-508.21,0.00013972,2]
[332846576,1721574650966,-430.44968673,0.00013972,2]
[332846577,1721574650976,-500.0,0.00013972,2]
[332846578,1721574651178,-500.0,0.00013972,2]
[332846579,1721574651189,-192.48985161,0.00013972,2]
[332846580,1721574651201,-500.0,0.00013972,2]
[332846581,1721574651211,-599.29363203,0.00013972,2]
[332846582,1721574651221,-500.0,0.00013972,2]
[332846583,1721574651231,-500.0,0.00013972,2]
[332846584,1721574651242,-500.0,0.00013972,2]
[332846585,1721574651251,-500.0,0.00013972,2]
[332846586,1721574651262,-500.0,0.00013972,2]
[332846587,1721574651276,-500.0,0.00013972,2]
[332846588,1721574651285,-500.0,0.00013972,2]
[332846589,1721574651295,-500.0,0.00013972,2]
[332846590,1721574651304,-500.0,0.00013972,2]
[332846591,1721574651313,-500.0,0.00013972,2]
[332846592,1721574651322,-500.0,0.00013972,2]
[332846593,1721574651333,-588.81283957,0.00013972,2]
[332846594,1721574651344,-500.0,0.00013972,2]
[332846595,1721574651356,-500.0,0.00013972,2]
[332846596,1721574651367,-500.0,0.00013972,2]
[332846597,1721574651377,-500.0,0.00013972,2]
[332846598,1721574651388,-500.0,0.00013972,2]
[332846599,1721574651398,-604.38,0.00013972,2]
[332846600,1721574651409,-500.0,0.00013972,2]
[332846601,1721574651420,-500.0,0.00013972,2]
[332846602,1721574651429,-527.61,0.00013972,2]
[332846603,1721574651439,-500.0,0.00013972,2]
[332846604,1721574651449,-500.0,0.00013972,2]
[332846605,1721574651460,-500.0,0.00013972,2]
[332846606,1721574651471,-429.48572886,0.00013972,2]
[332846607,1721574651480,-500.0,0.00013972,2]
[332846608,1721574651490,-500.0,0.00013972,2]
[332846609,1721574651499,-500.0,0.00013972,2]
[332846610,1721574651510,-509.06779164,0.00013972,2]
[332846611,1721574651519,-521.74,0.00013972,2]
[332846612,1721574651530,-500.0,0.00013972,2]
[332846613,1721574651542,-151.0,0.00013972,2]
[332846614,1721574651553,-151.0,0.00013972,2]
[332846615,1721574651563,-224.644796,0.00013972,2]
[332846616,1721574651572,-500.0,0.00013972,2]
[332846617,1721574651582,-500.91623701,0.00013972,2]
[332846618,1721574651591,-151.0,0.00013972,2]
[332846619,1721574651601,-151.0,0.00013972,2]
[332846620,1721574651611,-151.0,0.00013972,2]
[332846621,1721574651622,-151.0,0.00013972,2]
[332846622,1721574651632,-515.52653776,0.00013972,2]
[332846623,1721574651641,-502.05371275,0.00013972,2]
[332846624,1721574651651,-500.0,0.00013972,2]
[332846625,1721574651660,-500.0,0.00013972,2]
[332846626,1721574651671,-151.0,0.00013972,2]
[332846627,1721574651682,-151.0,0.00013972,2]
[332846628,1721574651692,-151.0,0.00013972,2]
[332846629,1721574651702,-151.0,0.00013972,2]
[332846630,1721574651711,-191.290646,0.00013972,2]
[332846631,1721574651722,-500.0,0.00013972,2]
[332846632,1721574651733,-151.0,0.00013972,2]
[332846633,1721574651743,-151.0,0.00013972,2]
[332846634,1721574651752,-151.0,0.00013972,2]
[332846635,1721574651762,-151.0,0.00013972,2]
[332846636,1721574651773,-151.0,0.00013972,2]
[332846637,1721574651783,-151.0,0.00013972,2]
[332846638,1721574651796,-151.0,0.00013972,2]
[332846639,1721574651807,-183.88,0.00013972,2]
[332846640,1721574651818,-500.0,0.00013972,2]
[332846641,1721574651827,-500.0,0.00013972,2]
[332846642,1721574651838,-216.75289,0.00013972,2]
[332846643,1721574651848,-216.75289,0.00013972,2]
[332846644,1721574651857,-216.75289,0.00013972,2]
[332846645,1721574651867,-216.75289,0.00013972,2]
[332846646,1721574651877,-216.75289,0.00013972,2]
[332846647,1721574651887,-216.75289,0.00013972,2]
[332846648,1721574651896,-853.696685,0.00013972,2]
[332846649,1721574651908,-853.696685,0.00013972,2]
[332846650,1721574651918,-853.696685,0.00013972,2]
[332846651,1721574651928,-853.696685,0.00013972,2]
[332846652,1721574651938,-853.696685,0.00013972,2]
[332846653,1721574651948,-853.696685,0.00013972,2]
[332846654,1721574651958,-151.0,0.00013972,2]
[332846655,1721574651969,-151.0,0.00013972,2]
[332846656,1721574651980,-151.0,0.00013972,2]
[332846657,1721574651990,-287.848978,0.00013972,2]
[332846658,1721574652000,-151.0,0.00013972,2]
[332846659,1721574652009,-151.0,0.00013972,2]
[332846660,1721574652019,-151.0,0.00013972,2]
[332846661,1721574652028,-151.0,0.00013972,2]
[332846662,1721574652038,-216.19805,0.00013972,2]
[332846663,1721574652049,-151.0,0.00013972,2]
[332846664,1721574652060,-151.0,0.00013972,2]
[332846665,1721574652070,-232.851298,0.00013972,2]
[332846666,1721574652082,-393.434896,0.00013972,2]
[332846667,1721574652091,-393.434896,0.00013972,2]
[332846668,1721574652101,-393.434896,0.00013972,2]
[332846669,1721574652111,-393.434896,0.00013972,2]
[332846670,1721574652120,-393.434896,0.00013972,2]
[332846671,1721574652130,-393.434896,0.00013972,2]
[332846672,1721574652139,-151.0,0.00013972,2]
[332846673,1721574652149,-151.0,0.00013972,2]
[332846674,1721574652158,-272.966349,0.00013972,2]
[332846675,1721574652167,-242.154464,0.00013972,2]
[332846676,1721574652177,-151.0,0.00013972,2]
[332846677,1721574652186,-151.0,0.00013972,2]
[332846678,1721574652200,-151.0,0.00013972,2]
[332846679,1721574652209,-151.0,0.00013972,2]
[332846680,1721574652219,-151.0,0.00013972,2]
[332846681,1721574652228,-151.0,0.00013972,2]
[332846682,1721574652239,-151.0,0.00013972,2]
[332846683,1721574652248,-151.0,0.00013972,2]
[332846684,1721574652257,-278.01014,0.00013972,2]
[332846685,1721574652266,-151.0,0.00013972,2]
[332846686,1721574652277,-151.0,0.00013972,2]
[332846687,1721574652286,-271.706325,0.00013972,2]
[332846688,1721574652295,-173.062724,0.00013996,2]
[332846689,1721574652306,-212.21156,0.00013996,2]
[332846690,1721574652316,-183.418748,0.00013996,2]
[332846691,1721574652326,-150.112233,0.00014,5]
[332846692,1721574652335,-150.112233,0.00014,5]
[332846693,1721574652344,-150.112233,0.00014,3]
[332846694,1721574652354,-150.112233,0.00014,2]
[332846695,1721574652365,-293.8425286,0.00014,2]
[332846696,1721574652374,-292.5547696,0.00014,2]
[332846697,1721574652385,-337.26526956,0.00014009,2]
[332846698,1721574652394,-4732.3786531,0.00014024,2]
[332846699,1721574652405,-191.751021,0.0001404,2]
[332846700,1721574652414,-252.727714,0.0001404,2]
[332846701,1721574652424,-153.0,0.00014051,2]
[332846702,1721574652434,-300.101,0.00014072,2]
[332846703,1721574652443,-600.0,0.00014084,2]
[332846704,1721574652453,-150.112233,0.000141,3]
[332846705,1721574652463,-150.112233,0.000141,4]
[332846706,1721574652472,-150.112233,0.000141,2]
[332846707,1721574652482,-182.829031,0.0001411,2]
[332846708,1721574652493,-337.26526956,0.00014146,2]
[332846709,1721574652503,-620.00000011,0.00014153,2]
[332846710,1721574652513,-173.062724,0.00014167,2]
[332846711,1721574652522,-212.21156,0.00014167,2]
[332846712,1721574652532,-183.418748,0.00014167,2]
[332846713,1721574652542,-150.112233,0.000142,5]
[332846714,1721574652552,-150.112233,0.000142,2]
[332846715,1721574652562,-159.792517,0.00014213,2]
[332846716,1721574652572,-191.751021,0.00014213,2]
[332846717,1721574652582,-252.727714,0.00014213,2]
[332846718,1721574652591,-336.46164038,0.00014218,2]
[332846719,1721574652601,-600.0,0.0001423,2]
[332846720,1721574652611,-500.0,0.00014244,2]
[332846721,1721574652621,-27225.75055469,0.00014245,2]
[332846722,1721574652630,-500.0,0.00014245,2]
[332846723,1721574652640,-500.0,0.00014245,2]
[332846724,1721574652650,-500.0,0.00014245,2]
[332846725,1721574652660,-368.15972447,0.00014245,2]
[332846726,1721574652669,-161.473364,0.00014245,2]
[332846727,1721574652679,-393.434896,0.00014245,2]
[332846728,1721574652689,-393.434896,0.00014245,2]
[332846729,1721574652699,-500.0,0.00014246,2]
[332846730,1721574652708,-500.0,0.00014246,2]
[332846731,1721574652718,-500.0,0.00014246,2]
[332846732,1721574652727,-500.0,0.00014246,2]
[332846733,1721574652738,-500.0,0.00014246,2]
[332846734,1721574652747,-301.69324672,0.00014246,2]
[332846735,1721574652758,-683.88,0.00014246,2]
[332846736,1721574652767,-459.37014674,0.00014246,2]
[332846737,1721574652777,-500.0,0.00014246,2]
[332846738,1721574652787,-2306.83,0.00014246,2]
[332846739,1721574652796,-209.24527962,0.00014246,2]
[332846740,1721574652807,-486.08324976,0.00014246,2]
[332846741,1721574652820,-500.0,0.00014246,2]
[332846742,1721574652831,-500.0,0.00014246,2]
[332846743,1721574652840,-500.0,0.00014246,2]
[332846744,1721574652850,-500.0,0.00014246,2]
[332846745,1721574652863,-500.0,0.00014246,2]
[332846746,1721574652873,-500.0,0.00014246,2]
[332846747,1721574652882,-473.58590118,0.00014246,2]
[332846748,1721574652894,-500.0,0.00014246,2]
[332846749,1721574652904,-500.0,0.00014246,2]
[332846750,1721574652913,-507.35204821,0.00014246,2]
[332846751,1721574652923,-500.0,0.00014246,2]
[332846752,1721574652933,-749.97,0.00014246,2]
[332846753,1721574652943,-500.0,0.00014246,2]
[332846754,1721574652953,-500.0,0.00014246,2]
[332846755,1721574652963,-500.0,0.00014246,2]
[332846756,1721574652972,-500.0,0.00014246,2]
[332846757,1721574652982,-500.0,0.00014246,2]
[332846758,1721574652992,-500.0,0.00014246,2]
[332846759,1721574653001,-500.0,0.00014246,2]
[332846760,1721574653011,-500.0,0.00014246,2]
[332846761,1721574653020,-500.0,0.00014246,2]
[332846762,1721574653030,-500.0,0.00014246,2]
[332846763,1721574653040,-500.0,0.00014246,2]
[332846764,1721574653052,-539.84,0.00014246,2]
[332846765,1721574653062,-2033.74,0.00014246,2]
[332846766,1721574653073,-500.0,0.00014246,2]
[332846767,1721574653083,-500.0,0.00014246,2]
[332846768,1721574653093,-500.0,0.00014246,2]
[332846769,1721574653103,-500.0,0.00014246,2]
[332846770,1721574653114,-500.0,0.00014246,2]
[332846771,1721574653125,-500.0,0.00014246,2]
[332846772,1721574653134,-1177.69,0.00014246,2]
[332846773,1721574653143,-735.43,0.00014246,2]
[332846774,1721574653153,-527.98386367,0.00014246,2]
[332846775,1721574653163,-500.0,0.00014246,2]
[332846776,1721574653174,-554.94,0.00014246,2]
[332846777,1721574653184,-167.75619751,0.00014246,2]
[332846778,1721574653199,-500.0,0.00014246,2]
[332846779,1721574653209,-549.02,0.00014246,2]
[332846780,1721574653220,-466.47768133,0.00014246,2]
[332846781,1721574653231,-685.82,0.00014246,2]
[332846782,1721574653240,-500.0,0.00014246,2]
[332846783,1721574653250,-575.57,0.00014246,2]
[332846784,1721574653262,-1031.38,0.00014246,2]
[332846785,1721574653273,-500.0,0.00014246,2]
[332846786,1721574653283,-500.0,0.00014246,2]
[332846787,1721574653293,-500.0,0.00014246,2]
[332846788,1721574653303,-500.0,0.00014246,2]
[332846789,1721574653312,-500.0,0.00014246,2]
[332846790,1721574653322,-500.0,0.00014246,2]
[332846791,1721574653331,-500.0,0.00014246,2]
[332846792,1721574653341,-714.38,0.00014246,2]
[332846793,1721574653356,-500.0,0.00014246,2]
[332846794,1721574653367,-500.0,0.00014246,2]
[332846795,1721574653376,-500.0,0.00014246,2]
[332846796,1721574653387,-500.0,0.00014246,2]
[332846797,1721574653397,-505.12,0.00014246,2]
[332846798,1721574653406,-1365.28,0.00014246,2]
[332846799,1721574653417,-500.0,0.00014246,2]
[332846800,1721574653427,-500.0,0.00014246,2]
[332846801,1721574653437,-647.07,0.00014246,2]
[332846802,1721574653447,-589.48,0.00014246,2]
[332846803,1721574653456,-508.21,0.00014246,2]
[332846804,1721574653465,-500.0,0.00014246,2]
[332846805,1721574653478,-768.59,0.00014246,2]
[332846806,1721574653487,-647.55,0.00014246,2]
[332846807,1721574653498,-500.0,0.00014246,2]
[332846808,1721574653507,-953.2,0.00014246,2]
[332846809,1721574653517,-500.0,0.00014246,2]
[332846810,1721574653526,-500.0,0.00014246,2]
[332846811,1721574653535,-500.0,0.00014246,2]
[332846812,1721574653546,-874.1,0.00014246,2]
[332846813,1721574653555,-519.25,0.00014246,2]
[332846814,1721574653611,-884.66,0.00014246,2]
[332846815,1721574653621,-1057.52,0.00014246,2]
[332846816,1721574653630,-1889.7,0.00014246,2]
[332846817,1721574653639,-500.0,0.00014246,2]
[332846818,1721574653649,-500.0,0.00014246,2]
[332846819,1721574653659,-218.81752117,0.00014246,2]
[332846820,1721574653668,-1132.04,0.00014246,2]
[332846821,1721574653677,-666.49,0.00014246,2]
[332846822,1721574653685,-668.28,0.00014246,2]
[332846823,1721574653694,-500.0,0.00014246,2]
[332846824,1721574653705,-500.0,0.00014246,2]
[332846825,1721574653714,-500.0,0.00014246,2]
[332846826,1721574653724,-1624.09,0.00014246,2]
[332846827,1721574653734,-976.27,0.00014246,2]
[332846828,1721574653744,-642.19,0.00014246,2]
[332846829,1721574653753,-552.84,0.00014246,2]
[332846830,1721574653763,-504.25838901,0.00014246,2]
[332846831,1721574653772,-837.86,0.00014246,2]
[332846832,1721574653781,-500.0,0.00014246,2]
[332846833,1721574653790,-838.14,0.00014246,2]
[332846834,1721574653800,-500.0,0.00014246,2]
[332846835,1721574653809,-500.0,0.00014246,2]
[332846836,1721574653819,-2035.58,0.00014246,2]
[332846837,1721574653829,-554.09,0.00014246,2]
[332846838,1721574653838,-500.0,0.00014246,2]
[332846839,1721574653848,-1328.22,0.00014246,2]
[332846840,1721574653859,-500.0,0.00014246,2]
[332846841,1721574653871,-500.0,0.00014246,2]
[332846842,1721574653880,-500.0,0.00014246,2]
[332846843,1721574653890,-506.13,0.00014246,2]
[332846844,1721574653900,-500.0,0.00014246,2]
[332846845,1721574653911,-1470.26,0.00014246,2]
[332846846,1721574653922,-237.24241707,0.00014246,2]
[332846847,1721574653932,-500.0,0.00014246,2]
[332846848,1721574653941,-2054.5,0.00014246,2]
[332846849,1721574653951,-500.0,0.00014246,2]
[332846850,1721574653960,-628.44,0.00014246,2]
[332846851,1721574653970,-500.0,0.00014246,2]
[332846852,1721574653980,-500.0,0.00014246,2]
[332846853,1721574653990,-584.04136663,0.00014246,2]
[332846854,1721574653999,-700.9,0.00014246,2]
[332846855,1721574654009,-500.0,0.00014246,2]
[332846856,1721574654018,-592.29167057,0.00014246,2]
[332846857,1721574654027,-500.0,0.00014246,2]
[332846858,1721574654036,-500.0,0.00014246,2]
[332846859,1721574654045,-500.0,0.00014246,2]
[332846860,1721574654054,-630.92,0.00014246,2]
[332846861,1721574654063,-1078.09,0.00014246,2]
[332846862,1721574654072,-816.07,0.00014246,2]
[332846863,1721574654081,-500.0,0.00014246,2]
[332846864,1721574654090,-627.68,0.00014246,2]
[332846865,1721574654099,-604.38,0.00014246,2]
[332846866,1721574654107,-649.28,0.00014246,2]
[332846867,1721574654118,-2006.04,0.00014246,2]
[332846868,1721574654128,-500.0,0.00014246,2]
[332846869,1721574654138,-500.0,0.00014246,2]
[332846870,1721574654147,-500.0,0.00014246,2]
[332846871,1721574654156,-500.0,0.00014246,2]
[332846872,1721574654165,-565.27,0.00014246,2]
[332846873,1721574654175,-527.61,0.00014246,2]
[332846874,1721574654184,-500.0,0.00014246,2]
[332846875,1721574654196,-483.21411368,0.00014246,2]
[332846876,1721574654205,-500.0,0.00014246,2]
[332846877,1721574654214,-500.0,0.00014246,2]
[332846878,1721574654224,-500.0,0.00014246,2]
[332846879,1721574654234,-500.0,0.00014246,2]
[332846880,1721574654243,-666.18,0.00014246,2]
[332846881,1721574654252,-3069.31,0.00014246,2]
[332846882,1721574654263,-859.08,0.00014246,2]
[332846883,1721574654272,-500.0,0.00014246,2]
[332846884,1721574654281,-500.0,0.00014246,2]
[332846885,1721574654291,-500.0,0.00014246,2]
[332846886,1721574654299,-500.0,0.00014246,2]
[332846887,1721574654308,-500.0,0.00014246,2]
[332846888,1721574654318,-1517.82,0.00014246,2]
[332846889,1721574654327,-500.0,0.00014246,2]
[332846890,1721574654336,-1176.08,0.00014246,2]
[332846891,1721574654348,-500.0,0.00014246,2]
[332846892,1721574654360,-500.0,0.00014246,2]
[332846893,1721574654370,-509.7790004,0.00014246,2]
[332846894,1721574654380,-500.0,0.00014246,2]
[332846895,1721574654389,-500.0,0.00014246,2]
[332846896,1721574654398,-500.0,0.00014246,2]
[332846897,1721574654407,-1445.42,0.00014246,2]
[332846898,1721574654418,-500.0,0.00014246,2]
[332846899,1721574654429,-500.0,0.00014246,2]
[332846900,1721574654440,-500.0,0.00014246,2]
[332846901,1721574654450,-771.46,0.00014246,2]
[332846902,1721574654459,-2045.09,0.00014246,2]
[332846903,1721574654469,-500.0,0.00014246,2]
[332846904,1721574654479,-500.0,0.00014246,2]
[332846905,1721574654488,-930.2,0.00014246,2]
[332846906,1721574654498,-500.0,0.00014246,2]
[332846907,1721574654511,-684.13,0.00014246,2]
[332846908,1721574654522,-500.0,0.00014246,2]
[332846909,1721574654532,-500.0,0.00014246,2]
[332846910,1721574654543,-687.94,0.00014246,2]
[332846911,1721574654553,-1866.61,0.00014246,2]
[332846912,1721574654563,-500.0,0.00014246,2]
[332846913,1721574654572,-1337.16,0.00014246,2]
[332846914,1721574654581,-565.6,0.00014246,2]
[332846915,1721574654590,-561.68,0.00014246,2]
[332846916,1721574654600,-723.1,0.00014246,2]
[332846917,1721574654611,-500.0,0.00014246,2]
[332846918,1721574654622,-1520.82,0.00014246,2]
[332846919,1721574654632,-500.0,0.00014246,2]
[332846920,1721574654643,-1951.93,0.00014246,2]
[332846921,1721574654653,-2114.25,0.00014246,2]
[332846922,1721574654663,-500.0,0.00014246,2]
[332846923,1721574654674,-1164.77,0.00014246,2]
[332846924,1721574654683,-500.0,0.00014246,2]
[332846925,1721574654694,-1320.34,0.00014246,2]
[332846926,1721574654703,-500.0,0.00014246,2]
[332846927,1721574654713,-744.8,0.00014246,2]
[332846928,1721574654724,-1724.01,0.00014246,2]
[332846929,1721574654734,-500.0,0.00014246,2]
[332846930,1721574654744,-1333.01,0.00014246,2]
[332846931,1721574654755,-500.0,0.00014246,2]
[332846932,1721574654765,-504.86,0.00014246,2]
[332846933,1721574654774,-500.0,0.00014246,2]
[332846934,1721574654784,-223.39696642,0.00014246,2]
[332846935,1721574654793,-531.31,0.00014246,2]
[332846936,1721574654803,-2564.77,0.00014246,2]
[332846937,1721574654815,-503.98,0.00014246,2]
[332846938,1721574654824,-503.63334197,0.00014246,2]